bitfinex/quotes_ETHUSD_20260126
["timestamp","ask_amount","ask_price","bid_price","bid_amount"]
[1769412786599,5.22907653,2891.0,2889.9,4.92373592]
[1769412787113,5.22907653,2891.0,2889.5,5.78893672]
[1769412787766,5.22907653,2891.0,2889.5,5.78893585]
[1769412788300,4.67509452,2890.8,2889.5,5.80629165]
[1769412788676,4.67509452,2890.8,2889.5,4.92373592]
[1769412788873,4.67509452,2890.6,2889.5,4.92373592]
[1769412789085,4.67509452,2890.6,2889.5,5.78893534]
[1769412789407,4.67509452,2890.6,2889.5,4.92373592]
[1769412789957,4.67509452,2890.6,2889.5,5.78893422]
[1769412790211,4.67509452,2890.6,2889.5,4.92373592]
[1769412790380,0.52290822,2890.5,2889.5,5.78893042]
[1769412790699,0.86478923,2890.9,2889.5,5.78893042]
[1769412790700,4.67509452,2890.9,2889.5,5.78893042]
[1769412790864,4.67509452,2890.9,2889.7,0.001]
[1769412791066,4.67509452,2890.9,2889.8,4.92373592]
[1769412791766,0.55398201,2891.0,2889.8,4.92373592]
[1769412792170,0.55398201,2891.0,2889.9,5.78881775]
[1769412792372,0.52290765,2890.9,2890.0,5.84866219]
[1769412792758,0.52290765,2890.9,2890.0,4.92373592]
[1769412796781,5.19800217,2890.9,2890.0,4.92373592]
[1769412797190,0.52290765,2890.9,2890.0,5.7887816]
[1769412797395,6.35,2891.3,2890.0,5.7887816]
[1769412799778,4.75781635,2891.2,2890.0,4.92373592]
[1769412800116,4.75781635,2890.9,2889.7,0.001]
[1769412800280,5.2398678,2890.8,2889.7,0.56179938]
[1769412800477,5.2398678,2890.8,2889.7,5.30362582]
[1769412800697,5.2398678,2890.8,2889.7,5.607968]
[1769412800909,0.48205145,2890.8,2889.7,5.607968]
[1769412801094,4.75781635,2891.1,2889.7,5.607968]
[1769412802315,5.62255178,2891.1,2889.7,5.607968]
[1769412802695,5.62255178,2891.1,2889.7,4.74282644]
[1769412802899,4.75781635,2890.8,2889.7,0.001]
[1769412804515,5.62264409,2890.8,2889.7,0.001]
[1769412804724,4.75781635,2890.6,2889.7,0.001]
[1769412806523,5.62271155,2890.6,2889.7,0.001]
[1769412807312,4.75781635,2890.4,2889.7,0.001]
[1769412808815,5.62276094,2890.4,2889.7,0.001]
[1769412810135,5.62276094,2890.4,2888.9,6.47436266]
[1769412810136,4.75781635,2890.1,2888.9,6.47436266]
[1769412810308,4.75781635,2890.1,2889.0,5.60715189]
[1769412810507,1.29354591,2890.3,2889.3,4.74182644]
[1769412810829,5.48281635,2890.6,2889.6,4.74182644]
[1769412811131,5.62269048,2890.6,2889.6,4.74182644]
[1769412812034,5.62269048,2890.6,2889.5,6.47436266]
[1769412812210,0.56873422,2890.7,2889.9,6.47436266]
[1769412812415,0.002,2890.9,2890.2,6.47436266]
[1769412813103,0.002,2890.9,2889.9,6.47436266]
[1769412813331,4.75981635,2890.9,2889.9,6.47436266]
[1769412813711,4.75981635,2890.9,2889.7,4.74182644]
[1769412814132,4.75781635,2890.7,2889.5,4.74182644]
[1769412814332,0.002,2890.9,2889.7,0.86513479]
[1769412814333,5.2398678,2890.6,2889.7,0.86513479]
[1769412814638,0.48205145,2890.6,2889.7,5.60695104]
[1769412814937,0.002,2890.9,2889.8,4.83419603]
[1769412815524,4.98642921,2890.9,2889.7,4.83419603]
[1769412815738,0.06269811,2890.7,2889.7,4.83419603]
[1769412816037,4.98442921,2890.7,2889.7,4.83419603]
[1769412816208,4.98442921,2890.6,2889.3,4.83419603]
[1769412816409,5.42017402,2890.5,2889.4,5.4041428]
[1769412816609,5.42017402,2890.5,2889.4,4.83419603]
[1769412816839,5.42017402,2890.5,2889.9,0.001]
[1769412817027,6.28509305,2890.5,2889.9,0.001]
[1769412817699,5.42017402,2890.5,2889.9,0.001]
[1769412818738,4.98442921,2890.4,2889.9,0.001]
[1769412818907,0.63477757,2890.3,2889.9,0.001]
[1769412821215,0.49844292,2890.5,2889.9,0.001]
[1769412822015,5.42017402,2890.5,2889.9,0.001]
[1769412822212,0.49844292,2890.5,2889.9,0.001]
[1769412822419,0.49844292,2890.5,2889.9,4.86979928]
[1769412822912,6.35,2890.6,2889.9,4.86979928]
[1769412825446,6.35,2890.6,2889.9,0.03560325]
[1769412825743,4.98642921,2890.9,2889.9,0.001]
[1769412825955,5.85121351,2890.9,2889.9,0.001]
[1769412826117,4.9217311,2890.6,2889.9,0.001]
[1769412826312,0.49844292,2890.5,2889.9,0.001]
[1769412826512,4.9217311,2890.4,2889.9,0.001]
[1769412826711,5.48287213,2890.5,2889.9,0.001]
[1769412829238,0.002,2890.4,2889.9,0.001]
[1769412831648,0.002,2890.4,2889.9,4.83519603]
[1769412831824,0.002,2890.9,2890.1,4.83419603]
[1769412834172,0.002,2890.9,2889.9,0.001]
[1769412834173,4.98642921,2890.9,2889.9,0.001]
[1769412834878,4.98642921,2890.9,2889.9,4.83519603]
[1769412840281,4.98642921,2890.9,2889.9,0.001]
[1769412840649,0.06469811,2890.9,2890.0,4.83419603]
[1769412841973,0.06469811,2890.9,2890.1,0.001]
[1769412842155,0.002,2890.7,2890.1,0.001]
[1769412843481,0.002,2890.7,2890.1,4.83519603]
[1769412843800,0.002,2891.1,2890.4,4.83419603]
[1769412844203,0.002,2891.1,2890.4,5.69911621]
[1769412844566,0.002,2891.9,2890.5,4.83419603]
[1769412845689,0.002,2891.9,2890.6,4.87930922]
[1769412845891,0.002,2891.9,2890.8,4.87930922]
[1769412846075,0.002,2891.9,2891.0,4.87930922]
[1769412848366,0.002,2891.9,2891.0,5.7440452]
[1769412851616,0.002,2891.9,2891.0,5.7786353]
[1769412855044,0.002,2891.7,2891.0,5.7786353]
[1769412855196,0.002,2891.7,2891.2,4.87930922]
[1769412855524,0.002,2892.1,2891.2,4.87930922]
[1769412855525,0.002,2892.1,2891.4,4.87930922]
[1769412856290,0.002,2892.1,2891.2,0.03458771]
[1769412856495,0.002,2892.1,2891.2,4.91389693]
[1769412856811,0.002,2892.1,2891.2,4.87930922]
[1769412856812,4.87795862,2892.1,2891.2,4.87930922]
[1769412857011,5.37222429,2892.1,2891.0,4.91389932]
[1769412857312,5.37222429,2892.1,2891.0,5.77863328]
[1769412857512,4.87795862,2892.1,2891.1,0.86472017]
[1769412857825,4.87795862,2892.1,2891.1,4.5557459]
[1769412858229,4.87795862,2892.1,2891.1,5.42046653]
[1769412858524,4.87795862,2892.1,2891.1,4.5557459]
[1769412859330,4.87795862,2892.1,2891.1,4.59033481]
[1769412859633,4.87795862,2892.1,2891.2,1.10561905]
[1769412860633,4.77483475,2891.5,2890.2,4.5557459]
[1769412860834,4.77483475,2891.3,2890.2,5.42071985]
[1769412861438,4.77483475,2891.3,2890.3,4.59034438]
[1769412861723,4.77483475,2891.3,2890.4,6.46585573]
[1769412861900,4.77483475,2891.3,2890.5,1.10562001]
[1769412863330,4.77483475,2891.6,2890.6,4.5557459]
[1769412865519,4.77483475,2891.2,2890.1,6.95037533]
[1769412865724,0.06269811,2891.3,2890.1,6.95037533]
[1769412865725,5.25858804,2891.1,2890.1,6.95037533]
[1769412865934,4.77483475,2891.1,2890.1,11.50612123]
[1769412867240,4.77483475,2891.1,2890.7,0.001]
[1769412869637,4.77483475,2891.1,2890.1,0.001]
[1769412869638,4.77483475,2890.8,2890.1,0.001]
[1769412870515,4.83753286,2890.6,2889.3,6.46585573]
[1769412870716,4.77483475,2890.4,2889.4,1.18868641]
[1769412871339,4.77483475,2890.4,2889.4,2.05391676]
[1769412871511,4.77483475,2890.4,2889.4,1.18868641]
[1769412872047,4.77483475,2890.4,2889.4,2.05391366]
[1769412872916,4.77483475,2890.4,2889.4,1.18868641]
[1769412873127,5.30696337,2890.4,2889.4,0.86522923]
[1769412873344,5.30696337,2890.4,2889.3,5.4382118]
[1769412873557,5.30696337,2890.4,2889.3,4.57295188]
[1769412873861,5.30696337,2890.4,2889.3,5.43821297]
[1769412874747,0.86483229,2890.8,2889.3,5.43821297]
[1769412874948,6.30420904,2890.9,2889.3,5.43821297]
[1769412875153,4.65271343,2890.8,2889.3,5.43821297]
[1769412875663,4.71541154,2890.7,2889.3,5.4492516]
[1769412878728,6.35,2890.8,2889.6,4.86336364]
[1769412878923,7.52904115,2890.8,2889.8,4.86336364]
[1769412879236,7.52904115,2890.8,2889.9,4.89162403]
[1769412879446,7.52904115,2890.8,2889.9,4.86336364]
[1769412879956,7.52904115,2890.8,2889.7,0.48643636]
[1769412879957,4.65271343,2890.7,2889.7,0.48643636]
[1769412880153,4.65271343,2890.5,2889.5,4.86436364]
[1769412881055,4.71541154,2890.4,2889.5,0.001]
[1769412883257,4.65271343,2890.4,2889.5,0.001]
[1769412883561,4.65271343,2890.7,2889.5,4.89262206]
[1769412883757,5.8771587,2890.6,2889.6,0.48926221]
[1769412884260,5.8771587,2890.6,2889.6,5.35262585]
[1769412885363,5.8771587,2890.6,2889.7,0.02825646]
[1769412885866,1.22444527,2890.6,2889.7,4.8916201]
[1769412886244,1.22444527,2890.6,2889.7,4.86336364]
[1769412886438,1.22444527,2890.6,2889.7,5.48524596]
[1769412886844,5.8771587,2890.6,2889.7,5.48524596]
[1769412887167,4.65271343,2890.5,2889.7,0.62188232]
[1769412887330,1.22444527,2890.6,2889.7,5.48524596]
[1769412887538,6.35,2890.8,2889.9,4.86336364]
[1769412887845,0.42125201,2890.7,2889.9,4.86336364]
[1769412888038,6.35,2890.8,2889.9,4.86336364]
[1769412889476,6.35,2890.8,2889.9,5.7284369]
[1769412889679,6.35,2890.8,2889.9,4.86336364]
[1769412890200,4.71541154,2891.2,2889.9,5.763044]
[1769412890350,0.002,2890.6,2889.9,5.763044]
[1769412890551,0.002,2890.6,2890.1,4.86336364]
[1769412890770,0.002,2890.8,2890.2,4.86336364]
[1769412893565,0.002,2890.8,2890.3,6.46902175]
[1769412893788,0.002,2890.8,2890.3,11.33238539]
[1769412894493,0.002,2890.8,2890.4,4.86336364]
[1769412894687,0.002,2890.8,2890.5,1.13323854]
[1769412895893,0.002,2890.8,2890.2,11.33253442]
[1769412896100,0.002,2890.8,2890.2,12.19752514]
[1769412896398,0.002,2890.8,2890.3,4.86336364]
[1769412898002,0.002,2890.8,2890.0,12.25488185]
[1769412898402,0.002,2890.8,2890.0,7.39151821]
[1769412898403,4.71741154,2890.8,2890.0,7.39151821]
[1769412898600,5.18915269,2890.8,2889.8,4.86336364]
[1769412898977,5.18915269,2890.8,2889.9,0.03460327]
[1769412899178,5.18915269,2890.8,2889.8,4.86336364]
[1769412899372,5.18915269,2890.8,2889.9,0.03460327]
[1769412899774,4.71541154,2890.5,2889.5,0.001]
[1769412900001,5.18695269,2890.5,2889.6,1.13335344]
[1769412900888,5.18695269,2890.5,2889.6,1.08335344]
[1769412901089,5.18695269,2890.5,2889.5,0.001]
[1769412902196,5.12425458,2890.5,2889.8,0.001]
[1769412902509,0.47154115,2890.5,2889.8,0.001]
[1769412902724,4.65471343,2890.6,2889.8,0.001]
[1769412904521,0.002,2890.6,2889.8,4.89896811]
[1769412904726,0.002,2890.6,2889.8,0.03560447]
[1769412904727,4.65471343,2890.6,2889.8,0.03560447]
[1769412905296,4.65471343,2890.6,2889.8,0.001]
[1769412905695,0.002,2890.6,2889.8,4.5376715]
[1769412906098,0.002,2890.6,2890.0,4.50206703]
[1769412906326,0.002,2890.6,2890.2,4.50206703]
[1769412906530,0.002,2890.8,2890.3,4.5366655]
[1769412907605,4.61100372,2891.6,2890.4,4.50206703]
[1769412907937,4.67370183,2891.5,2890.4,4.5366643]
[1769412908230,0.46737018,2891.4,2890.5,0.45366643]
[1769412908432,0.46737018,2891.4,2890.5,4.95573346]
[1769412909955,0.002,2892.0,2890.6,4.50206703]
[1769412910259,0.002,2892.0,2890.8,4.50206703]
[1769412911894,0.002,2892.0,2891.0,4.50206703]
[1769412912588,0.002,2892.0,2891.2,4.50206703]
[1769412912796,0.002,2892.0,2891.1,0.86472276]
[1769412912797,0.002,2892.1,2891.5,4.50206703]
[1769412914464,0.002,2892.1,2891.7,4.50206703]
[1769412915074,0.002,2891.8,2891.7,4.50206703]
[1769412915394,0.002,2892.0,2891.7,4.50206703]
[1769412915550,0.002,2892.0,2891.3,0.53667898]
[1769412915753,0.002,2892.0,2891.3,0.86465014]
[1769412916079,0.002,2892.0,2891.0,4.50206703]
[1769412916280,0.002,2892.0,2891.2,0.86467367]
[1769412916458,0.002,2892.0,2891.2,5.3667407]
[1769412919587,0.002,2892.6,2891.8,4.40754283]
[1769412919760,0.002,2893.1,2891.9,5.13154283]
[1769412920068,0.002,2893.1,2892.0,4.40754283]
[1769412920596,0.002,2893.1,2892.2,4.40754283]
[1769412922196,0.002,2894.0,2892.3,4.40754283]
[1769412922465,0.002,2894.0,2892.6,4.40754283]
[1769412922860,0.002,2894.0,2892.8,4.40754283]
[1769412923071,4.49823099,2893.9,2892.8,4.40754283]
[1769412923404,4.49823099,2893.9,2892.7,4.40754283]
[1769412924194,4.49823099,2893.4,2892.4,2.09048679]
[1769412924388,4.94805409,2893.4,2892.4,2.09048679]
[1769412924880,4.94805409,2893.4,2892.5,0.86430161]
[1769412925064,4.94805409,2893.4,2892.3,4.40754283]
[1769412925265,4.94805409,2893.4,2892.4,0.022624]
[1769412925899,4.94805409,2893.4,2892.4,0.03457336]
[1769412926109,0.49480541,2893.3,2892.4,0.03457336]
[1769412927179,0.49480541,2893.3,2893.0,0.001]
[1769412930167,4.93033829,2893.3,2893.0,0.001]
[1769412930495,4.49823099,2893.3,2892.3,0.03457335]
[1769412930698,4.49823099,2893.3,2892.3,0.89893252]
[1769412930897,4.49823099,2893.3,2892.3,5.30647535]
[1769412931271,4.43553288,2893.3,2892.3,4.44211618]
[1769412931472,4.88535598,2893.3,2892.4,0.44421162]
[1769412932601,4.88535598,2893.3,2892.4,4.85175445]
[1769412932769,4.43553288,2893.5,2892.4,4.85175445]
[1769412932969,4.43553288,2893.5,2892.5,0.03457216]
[1769412933404,4.43553288,2893.5,2892.5,4.44211499]
[1769412933705,4.43553288,2893.5,2892.5,5.30641377]
[1769412934402,4.43553288,2893.7,2892.5,5.30641377]
[1769412934605,0.44375329,2893.6,2892.6,5.32833775]
[1769412934929,0.002,2893.8,2892.7,4.83091488]
[1769412935482,0.002,2893.8,2892.8,5.66055972]
[1769412935822,0.002,2893.8,2892.9,4.83091249]
[1769412937586,0.002,2893.8,2892.9,5.69508714]
[1769412939018,0.002,2893.8,2893.0,4.79634512]
[1769412939217,0.002,2893.8,2893.1,0.67647369]
[1769412939412,0.002,2893.8,2893.1,4.8309101]
[1769412940493,0.002,2893.8,2893.2,0.86409511]
[1769412940693,0.002,2893.8,2893.2,5.66044023]
[1769412940892,0.002,2893.8,2893.3,0.03456261]
[1769412941321,0.002,2893.8,2893.2,4.83090773]
[1769412941513,0.002,2893.8,2893.3,0.56950199]
[1769412941714,0.002,2893.8,2893.4,0.03456022]
[1769412942337,4.42567928,2894.7,2893.5,4.79634512]
[1769412942636,0.002,2894.7,2893.7,4.79634512]
[1769412943195,0.06469811,2894.7,2893.7,4.79634512]
[1769412943415,4.48837739,2894.7,2893.8,0.56603208]
[1769412943604,4.42567928,2894.7,2893.8,0.56603208]
[1769412945118,4.42567928,2894.7,2893.8,1.42994668]
[1769412945323,4.42567928,2894.7,2893.8,0.56603208]
[1769412945521,4.48637739,2894.4,2893.4,0.02952371]
[1769412945693,4.42367928,2894.4,2893.6,0.86397523]
[1769412945895,4.42367928,2894.4,2893.6,0.89349689]
[1769412946318,4.42367928,2894.4,2893.6,0.86397523]
[1769412946530,0.002,2894.7,2893.6,4.79634512]
[1769412946697,0.002,2894.7,2893.8,4.79634512]
[1769412947725,0.002,2894.7,2894.0,4.79634512]
[1769412948325,0.002,2894.9,2894.1,4.79634512]
[1769412948795,0.002,2894.9,2894.3,4.79634512]
[1769412950626,0.002,2895.2,2894.3,0.724]
[1769412950827,0.002,2895.2,2894.4,0.55203451]
[1769412951029,0.002,2895.2,2894.3,0.0121033]
[1769412951030,4.42367928,2895.0,2894.3,0.0121033]
[1769412951231,0.002,2894.7,2894.3,0.0121033]
[1769412952938,0.002,2894.7,2894.3,0.8983103]
[1769412953239,0.002,2894.9,2894.3,0.8983103]
[1769412953240,0.002,2894.9,2894.3,5.69465542]
[1769412953607,0.002,2895.2,2894.3,5.69465542]
[1769412953809,0.002,2895.2,2894.5,4.79634512]
[1769412954032,0.002,2895.2,2894.5,4.8308934]
[1769412955041,0.002,2895.2,2894.5,5.69457852]
[1769412955218,4.42367928,2895.9,2894.8,4.79634512]
[1769412955421,0.002,2896.1,2894.8,4.79634512]
[1769412955422,4.42567928,2896.1,2894.8,4.79634512]
[1769412955716,4.95476571,2896.1,2895.0,4.79634512]
[1769412956841,0.53108643,2896.1,2895.0,4.79634512]
[1769412957220,4.95476571,2896.1,2895.0,4.79634512]
[1769412959237,4.95476571,2896.1,2895.1,0.03454112]
[1769412959441,0.53108643,2896.1,2895.1,4.83088624]
[1769412959616,0.002,2896.1,2895.2,5.36578894]
[1769412960619,0.002,2896.3,2895.3,4.83088385]
[1769412960950,0.002,2896.5,2895.3,4.83088385]
[1769412960951,0.002,2896.5,2895.4,4.79634512]
[1769412961143,0.002,2896.5,2895.6,4.79634512]
[1769412961445,0.002,2896.7,2895.7,4.79634512]
[1769412961673,0.002,2896.7,2895.9,4.79634512]
[1769412963233,0.002,2896.9,2896.1,4.79634512]
[1769412963432,0.002,2897.2,2896.1,4.79634512]
[1769412963748,0.002,2897.2,2896.1,5.51934512]
[1769412964258,0.002,2897.2,2896.1,4.79634512]
[1769412964434,0.002,2897.2,2896.3,4.79634512]
[1769412965139,0.002,2897.2,2896.5,4.53259647]
[1769412965728,4.67178867,2898.2,2896.5,4.53259647]
[1769412965932,4.60909056,2898.2,2896.5,4.53259647]
[1769412966255,4.60909056,2898.2,2896.8,4.53259647]
[1769412966429,4.60909056,2898.5,2897.0,4.53259647]
[1769412966751,4.60909056,2898.5,2896.9,1.17541712]
[1769412966752,4.60909056,2898.5,2897.2,4.53259647]
[1769412966953,4.60909056,2899.9,2897.9,4.53259647]
[1769412967118,0.06269811,2900.3,2898.1,5.3952306]
[1769412967119,4.60909056,2899.5,2898.1,5.3952306]
[1769412967751,10.66870225,2901.0,2898.1,5.3952306]
[1769412967752,4.60909056,2899.9,2898.1,5.3952306]
[1769412967958,0.61608567,2899.8,2898.3,4.53259647]
[1769412968163,4.67178867,2899.8,2898.3,4.53259647]
[1769412968472,4.67178867,2899.8,2897.7,3.45095812]
[1769412968473,4.67178867,2898.7,2897.3,4.53259647]
[1769412968633,4.67178867,2898.7,2897.4,0.86283727]
[1769412968829,4.67178867,2898.7,2897.3,4.53259647]
[1769412969034,4.60909056,2898.2,2897.0,4.53259647]
[1769412969258,4.60909056,2898.2,2896.8,0.723]
[1769412969567,4.60909056,2898.2,2896.9,6.57100427]
[1769412969875,5.07626943,2898.6,2897.0,4.53259647]
[1769412970046,0.50762694,2898.5,2897.2,4.53259647]
[1769412971136,0.50762694,2898.5,2897.2,4.56711255]
[1769412971568,1.37014307,2898.5,2897.2,4.56711255]
[1769412971776,4.60909056,2898.4,2897.2,0.03451608]
[1769412971984,4.60909056,2898.2,2897.2,0.03451608]
[1769412972150,0.46717887,2898.1,2897.2,0.03451608]
[1769412972352,5.07626943,2898.1,2897.2,0.03451608]
[1769412973139,5.07626943,2898.1,2897.0,0.03451846]
[1769412973656,4.67178867,2898.0,2897.0,0.03451846]
[1769412973963,1.32981867,2898.1,2896.8,0.86301678]
[1769412973964,4.60909056,2897.8,2896.8,0.86301678]
[1769412974187,4.60909056,2897.8,2896.9,0.03451965]
[1769412974779,4.60909056,2898.2,2896.9,0.03451965]
[1769412975083,4.60909056,2898.2,2897.4,0.001]
[1769412976457,4.60909056,2898.5,2897.4,0.001]
[1769412976664,4.60909056,2898.3,2897.4,0.001]
[1769412977688,4.70055731,2898.1,2897.4,0.001]
[1769412977987,4.76325542,2898.0,2897.4,0.001]
[1769412979294,4.70055731,2898.0,2897.4,0.001]
[1769412979503,5.0518421,2898.4,2897.4,0.001]
[1769412979669,0.59770753,2898.3,2897.4,0.001]
[1769412981082,6.16084196,2898.3,2897.4,0.001]
[1769412981268,4.70055731,2898.0,2897.4,0.001]
[1769412982700,4.70055731,2897.7,2896.6,0.03452323]
[1769412982894,4.76325542,2897.4,2896.6,0.03452323]
[1769412983063,0.47632554,2897.3,2896.4,0.03452561]
[1769412984274,0.86260437,2898.2,2896.6,4.30701334]
[1769412984471,0.86260437,2898.2,2896.2,7.78753522]
[1769412984472,5.62585979,2898.2,2896.9,4.30701334]
[1769412984672,0.06269811,2898.0,2897.0,0.03451846]
[1769412984997,4.70055731,2898.0,2897.0,0.03451846]
[1769412985385,4.70055731,2898.0,2896.8,0.03452085]
[1769412985683,0.47005573,2897.9,2896.8,0.55498057]
[1769412986489,4.70055731,2897.8,2896.8,0.52045972]
[1769412986798,4.70055731,2897.8,2896.6,0.03452323]
[1769412987566,4.70055731,2897.4,2896.2,1.28896048]
[1769412987768,4.70055731,2897.4,2896.6,0.001]
[1769412987961,0.06269811,2897.7,2896.6,0.001]
[1769412987962,4.70055731,2897.7,2896.6,0.001]
[1769412988166,0.002,2897.6,2896.6,0.001]
[1769412988573,0.06269811,2897.4,2896.6,0.001]
[1769412988786,5.17688285,2897.3,2896.6,0.001]
[1769412989791,0.47632554,2897.3,2896.6,0.001]
[1769412989964,4.70255731,2897.6,2896.6,0.001]
[1769412990169,0.002,2897.6,2896.6,4.30801334]
[1769412990371,0.002,2897.6,2896.7,4.34153538]
[1769412990811,0.002,2897.6,2896.7,5.20458483]
[1769412994233,0.002,2897.6,2896.7,4.34153538]
[1769412994420,0.002,2897.8,2896.9,4.30701334]
[1769412994711,0.002,2897.8,2897.1,4.30701334]
[1769412995016,0.002,2897.8,2897.2,0.03451608]
[1769412996895,0.002,2897.8,2896.9,0.03451965]
[1769412997397,0.002,2897.8,2896.9,0.8974899]
[1769412997597,0.002,2897.8,2897.0,0.58678496]
[1769412997807,0.002,2897.8,2897.1,0.03451727]
[1769412999511,0.002,2897.8,2897.2,0.86290211]
[1769412999696,0.002,2897.8,2897.3,0.03451489]
[1769413000108,0.002,2897.6,2897.2,0.03451608]
[1769413000487,0.002,2897.6,2897.2,0.5416262]
[1769413000889,0.002,2897.6,2897.2,0.03451608]
[1769413001098,0.002,2897.6,2897.1,0.03451727]
[1769413001400,0.002,2897.6,2896.9,0.03451965]
[1769413001571,4.54923586,2897.6,2896.6,0.03552323]
[1769413001817,0.45492359,2897.5,2896.6,0.57036617]
[1769413002021,0.45492359,2897.5,2896.6,1.43344512]
[1769413002199,4.54923586,2897.6,2896.6,1.43344512]
[1769413002704,4.54923586,2897.6,2896.6,0.57036617]
[1769413003017,4.54923586,2897.6,2896.6,1.43344392]
[1769413003521,4.54923586,2897.6,2896.6,1.43342536]
[1769413003722,4.54923586,2897.6,2896.6,0.57036617]
[1769413003930,0.45492359,2897.5,2896.6,0.57036617]
[1769413004239,0.45492359,2897.5,2896.6,1.43344528]
[1769413004822,0.45492359,2897.5,2896.6,0.57036617]
[1769413005125,0.45492359,2897.5,2896.6,1.43344614]
[1769413006424,0.45492359,2897.5,2896.6,1.43344557]
[1769413006631,0.45492359,2897.5,2896.6,0.57036617]
[1769413007027,0.45492359,2897.5,2896.6,1.43344348]
[1769413008552,0.45492359,2897.5,2896.6,0.57036617]
[1769413008721,0.45492359,2897.5,2896.6,1.43344573]
[1769413008922,0.45492359,2897.5,2896.6,1.43344282]
[1769413009123,5.0476518,2897.4,2896.6,0.03552323]
[1769413009932,0.50041594,2897.4,2896.6,0.8986006]
[1769413010133,0.002,2897.6,2896.6,5.34840074]
[1769413010933,0.002,2897.6,2896.6,5.31387751]
[1769413011137,0.002,2897.8,2896.7,4.44980014]
[1769413011451,0.002,2897.8,2896.9,4.44980014]
[1769413011656,0.002,2897.8,2897.1,4.44980014]
[1769413011941,0.002,2897.6,2897.3,4.44980014]
[1769413012115,0.002,2897.6,2897.4,0.0345137]
[1769413012312,0.002,2897.6,2897.2,0.44843186]
[1769413012515,0.002,2897.6,2897.1,0.03451727]
[1769413012719,0.002,2897.6,2897.1,0.8974482]
[1769413015125,0.002,2897.6,2897.1,0.03451727]
[1769413015353,0.002,2897.6,2897.1,0.89744347]
[1769413016445,0.002,2897.6,2897.1,0.03451727]
[1769413016652,0.002,2897.6,2897.1,0.89744894]
[1769413016847,0.002,2897.6,2897.2,0.60702491]
[1769413017566,0.002,2897.6,2897.3,0.03451489]
[1769413019256,0.002,2897.6,2897.3,0.89738683]
[1769413019753,0.002,2897.8,2897.3,0.89738683]
[1769413020634,0.002,2897.8,2897.3,5.34718697]
[1769413020828,0.002,2897.8,2897.4,5.39037745]
[1769413021030,0.002,2899.0,2897.5,4.48431265]
[1769413021344,0.002,2899.0,2897.7,4.44980014]
[1769413021534,0.002,2899.0,2898.1,6.43406857]
[1769413021959,0.002,2899.0,2898.2,4.44980014]
[1769413022129,0.002,2899.0,2898.4,6.43406857]
[1769413022331,0.002,2899.0,2898.4,10.88386871]
[1769413022838,0.002,2899.0,2898.5,4.44980014]
[1769413024456,0.002,2899.6,2898.5,5.3123097]
[1769413025241,0.002,2899.6,2898.5,1.58550956]
[1769413025443,0.4633934,2899.6,2898.6,4.52060966]
[1769413026147,0.06269811,2899.5,2898.6,4.52060966]
[1769413026849,0.4633934,2899.6,2898.6,4.52060966]
[1769413027647,0.002,2899.6,2898.6,5.3830763]
[1769413028165,0.002,2899.6,2898.6,6.10609462]
[1769413028369,0.002,2899.6,2898.7,4.52060966]
[1769413029538,0.002,2899.6,2898.9,4.52060966]
[1769413030277,4.67940842,2901.1,2898.9,4.52060966]
[1769413030482,0.24249009,2901.4,2899.2,4.52060966]
[1769413030633,0.06269811,2900.7,2899.2,4.52060966]
[1769413030838,4.67940842,2900.7,2899.3,4.52060966]
[1769413031033,4.67940842,2900.5,2899.2,0.723]
[1769413031239,4.67940842,2900.3,2899.0,5.05891321]
[1769413031441,0.46794084,2900.2,2899.1,0.50589132]
[1769413031970,0.46794084,2900.2,2899.1,5.88883275]
[1769413032175,0.46794084,2900.2,2899.1,5.92332621]
[1769413032354,0.46794084,2900.2,2899.1,5.06099444]
[1769413033074,0.46794084,2900.2,2899.1,5.92332568]
[1769413033275,0.50846512,2900.1,2899.1,5.06099444]
[1769413033741,0.50846512,2900.1,2899.1,5.9233277]
[1769413033947,0.50846512,2900.1,2899.1,5.06099444]
[1769413034652,0.50846512,2900.1,2899.1,4.55510312]
[1769413034857,0.50846512,2900.1,2899.0,0.03449465]
[1769413034858,5.12517543,2900.1,2899.0,0.03449465]
[1769413035471,0.50846512,2900.1,2899.0,5.41746713]
[1769413035780,0.06269811,2900.2,2899.0,5.41745859]
[1769413035960,0.002,2900.0,2899.0,4.55510431]
[1769413036276,4.61671031,2899.8,2898.7,0.001]
[1769413036471,4.61671031,2899.8,2898.8,0.03449703]
[1769413037351,4.61671031,2899.8,2898.7,0.03549822]
[1769413037660,0.46794084,2899.7,2898.7,0.03549822]
[1769413038167,5.74878271,2899.7,2898.7,0.03549822]
[1769413038368,5.74877319,2899.7,2898.7,0.001]
[1769413038570,4.41867349,2899.6,2898.7,0.001]
[1769413038768,1.39279781,2899.7,2898.7,0.001]
[1769413038769,4.41867349,2899.4,2898.7,0.001]
[1769413038937,4.86681065,2899.4,2898.7,0.001]
[1769413039541,0.44813716,2899.4,2898.7,0.001]
[1769413039853,4.88661433,2899.7,2898.7,0.001]
[1769413039854,5.74879826,2899.7,2898.7,0.001]
[1769413040242,4.41867349,2899.6,2898.7,0.001]
[1769413040569,4.41867349,2899.4,2898.7,0.001]
[1769413041773,4.41867349,2899.4,2898.3,0.03450298]
[1769413042354,5.28092283,2899.4,2898.3,0.03450298]
[1769413042549,4.41867349,2899.2,2898.3,0.03450298]
[1769413042749,4.41867349,2899.2,2898.1,0.86262186]
[1769413042969,0.53436209,2899.3,2898.2,5.52776468]
[1769413043176,4.41867349,2899.6,2898.2,5.52776468]
[1769413043373,0.06269811,2899.5,2898.2,4.66516247]
[1769413043578,5.2808618,2899.6,2898.4,6.43268361]
[1769413043881,5.2808618,2899.6,2898.4,6.4671854]
[1769413044170,5.2808618,2899.6,2898.4,0.03450179]
[1769413044372,4.99982357,2899.5,2898.4,0.03450179]
[1769413045251,4.99982357,2899.5,2898.3,11.06334191]
[1769413045751,4.99982357,2899.5,2898.3,4.6306583]
[1769413046091,4.99982357,2899.5,2898.3,4.66516128]
[1769413046376,4.41867349,2899.4,2898.3,0.03450298]
[1769413046575,0.58620518,2899.3,2898.3,0.03450298]
[1769413046977,5.00487867,2899.3,2898.2,0.03450417]
[1769413047158,4.41867349,2899.3,2898.2,0.03450417]
[1769413047356,4.4813716,2899.2,2897.7,0.86273197]
[1769413047568,4.4813716,2899.2,2897.8,0.03450893]